fUSD/lending_fUSD_20240117
["ID","MTS","AMOUNT","RATE_DAILY","PERIOD"]
[311892187,1705489894454,-500.0,0.00023288,2]
[311892188,1705489894463,-500.0,0.00023288,2]
[311892189,1705489894473,-500.0,0.00023288,2]
[311892190,1705489894482,-500.0,0.00023288,2]
[311892191,1705489894491,-500.0,0.00023288,2]
[311892192,1705489894500,-500.0,0.00023288,2]
[311892193,1705489894509,-500.0,0.00023288,2]
[311892194,1705489894518,-500.0,0.00023288,2]
[311892195,1705489894527,-500.0,0.00023288,2]
[311892196,1705489894537,-500.0,0.00023288,2]
[311892197,1705489894545,-212.6695365,0.00023288,2]
[311892198,1705489894554,-500.0,0.00023288,2]
[311892199,1705489894563,-500.0,0.00023288,2]
[311892200,1705489894573,-458.31562636,0.00023288,2]
[311892201,1705489894582,-468.63227857,0.00023288,2]
[311892202,1705489894591,-150.0,0.00023288,2]
[311892203,1705489894600,-150.0,0.00023288,2]
[311892204,1705489894609,-6608.47556175,0.00023361,2]
[311892205,1705489894618,-6608.47556175,0.00023486,2]
[311892206,1705489894627,-500.0,0.00023536,2]
[311892207,1705489894637,-330.96,0.00023559,2]
[311892208,1705489894646,-1504.83,0.00023561,2]
[311892209,1705489894655,-752.6,0.00023561,2]
[311892210,1705489894664,-500.0,0.00023561,2]
[311892211,1705489894673,-500.0,0.00023561,2]
[311892212,1705489894682,-1005.29,0.00023561,2]
[311892213,1705489894691,-581.65,0.00023561,2]
[311892214,1705489894700,-526.73708032,0.00023561,2]
[311892215,1705489894709,-724.82,0.00023561,2]
[311892216,1705489894718,-590.83449513,0.00023561,2]
[311892217,1705489894727,-500.0,0.00023561,2]
[311892218,1705489894736,-600.28,0.00023561,2]
[311892219,1705489894746,-500.0,0.00023561,2]
[311892220,1705489894755,-500.0,0.00023561,2]
[311892221,1705489894764,-568.6,0.00023561,2]
[311892222,1705489894773,-500.0,0.00023561,2]
[311892223,1705489894782,-500.0,0.00023561,2]
[311892224,1705489894793,-500.0,0.00023561,2]
[311892225,1705489894802,-514.64,0.00023561,2]
[311892226,1705489894812,-522.85,0.00023561,2]
[311892227,1705489894821,-500.0,0.00023561,2]
[311892228,1705489894830,-561.37,0.00023561,2]
[311892229,1705489894839,-500.0,0.00023561,2]
[311892230,1705489894848,-500.0,0.00023561,2]
[311892231,1705489894857,-569.46,0.00023561,2]
[311892232,1705489894866,-564.18,0.00023561,2]
[311892233,1705489894875,-1178.46,0.00023561,2]
[311892234,1705489894884,-500.0,0.00023561,2]
[311892235,1705489894893,-573.27,0.00023561,2]
[311892236,1705489894903,-500.0,0.00023561,2]
[311892237,1705489894912,-540.7,0.00023561,2]
[311892238,1705489894921,-500.0,0.00023561,2]
[311892239,1705489894930,-500.0,0.00023561,2]
[311892240,1705489894939,-507.73,0.00023561,2]
[311892241,1705489894948,-500.0,0.00023561,2]
[311892242,1705489894957,-500.0,0.00023561,2]
[311892243,1705489894967,-313.52,0.00023561,2]
[311892244,1705489894976,-500.0,0.00023561,2]
[311892245,1705489894985,-637.70187336,0.00023561,2]
[311892246,1705489894995,-500.0,0.00023561,2]
[311892247,1705489895004,-554.53,0.00023561,2]
[311892248,1705489895013,-676.5,0.00023561,2]
[311892249,1705489895022,-569.53,0.00023561,2]
[311892250,1705489895032,-500.0,0.00023561,2]
[311892251,1705489895042,-773.49,0.00023561,2]
[311892252,1705489895052,-500.0,0.00023561,2]
[311892253,1705489895061,-500.0,0.00023561,2]
[311892254,1705489895070,-500.0,0.00023561,2]
[311892255,1705489895080,-713.2,0.00023561,2]
[311892256,1705489895089,-924.46,0.00023561,2]
[311892257,1705489895099,-500.0,0.00023561,2]
[311892258,1705489895108,-1087.8,0.00023561,2]
[311892259,1705489895118,-748.0,0.00023561,2]
[311892260,1705489895127,-590.98,0.00023561,2]
[311892261,1705489895137,-500.0,0.00023561,2]
[311892262,1705489895146,-1140.29,0.00023561,2]
[311892263,1705489895156,-500.0,0.00023561,2]
[311892264,1705489895166,-432.2151627,0.00023561,2]
[311892265,1705489895176,-500.0,0.00023561,2]
[311892266,1705489895187,-771.56,0.00023561,2]
[311892267,1705489895198,-500.0,0.00023561,2]
[311892268,1705489895208,-500.0,0.00023561,2]
[311892269,1705489895219,-500.0,0.00023561,2]
[311892270,1705489895229,-500.0,0.00023561,2]
[311892271,1705489895239,-500.0,0.00023561,2]
[311892272,1705489895249,-841.84,0.00023561,2]
[311892273,1705489895259,-1103.54,0.00023561,2]
[311892274,1705489895268,-771.02,0.00023561,2]
[311892275,1705489895278,-674.53,0.00023561,2]
[311892276,1705489895290,-500.0,0.00023561,2]
[311892277,1705489895302,-500.0,0.00023561,2]
[311892278,1705489895311,-1012.5,0.00023561,2]
[311892279,1705489895321,-708.29,0.00023561,2]
[311892280,1705489895332,-902.18,0.00023561,2]
[311892281,1705489895344,-642.34,0.00023561,2]
[311892282,1705489895355,-500.0,0.00023561,2]
[311892283,1705489895366,-1577.38,0.00023561,2]
[311892284,1705489895377,-500.0,0.00023561,2]
[311892285,1705489895388,-500.0,0.00023561,2]
[311892286,1705489895398,-642.91,0.00023561,2]
[311892287,1705489895409,-671.72,0.00023561,2]
[311892288,1705489895419,-559.49,0.00023561,2]
[311892289,1705489895428,-500.0,0.00023561,2]
[311892290,1705489895439,-513.19,0.00023561,2]
[311892291,1705489895449,-1101.33,0.00023561,2]
[311892292,1705489895458,-560.17,0.00023561,2]
[311892293,1705489895468,-646.26,0.00023561,2]
[311892294,1705489895476,-500.0,0.00023561,2]
[311892295,1705489895486,-540.47,0.00023561,2]
[311892296,1705489895496,-1309.23,0.00023561,2]
[311892297,1705489895506,-862.21,0.00023561,2]
[311892298,1705489895516,-500.0,0.00023561,2]
[311892299,1705489895526,-500.0,0.00023561,2]
[311892300,1705489895537,-592.26,0.00023561,2]
[311892301,1705489895554,-500.0,0.00023561,2]
[311892302,1705489895564,-548.37,0.00023561,2]
[311892303,1705489895574,-852.28,0.00023561,2]
[311892304,1705489895584,-751.97,0.00023561,2]
[311892305,1705489895594,-629.68,0.00023561,2]
[311892306,1705489895604,-500.0,0.00023561,2]
[311892307,1705489895614,-1038.17,0.00023561,2]
[311892308,1705489895624,-865.86,0.00023561,2]
[311892309,1705489895634,-500.0,0.00023561,2]
[311892310,1705489895645,-500.0,0.00023561,2]
[311892311,1705489895655,-809.41,0.00023561,2]
[311892312,1705489895665,-824.35,0.00023561,2]
[311892313,1705489895675,-500.0,0.00023561,2]
[311892314,1705489895685,-500.0,0.00023561,2]
[311892315,1705489895695,-858.82,0.00023561,2]
[311892316,1705489895705,-583.98,0.00023561,2]
[311892317,1705489895715,-500.0,0.00023561,2]
[311892318,1705489895725,-678.81,0.00023561,2]
[311892319,1705489895735,-924.3,0.00023561,2]
[311892320,1705489895745,-683.06,0.00023561,2]
[311892321,1705489895755,-500.0,0.00023561,2]
[311892322,1705489895766,-762.3,0.00023561,2]
[311892323,1705489895776,-500.0,0.00023561,2]
[311892324,1705489895786,-500.0,0.00023561,2]
[311892325,1705489895802,-500.0,0.00023561,2]
[311892326,1705489895812,-869.48,0.00023561,2]
[311892327,1705489895823,-726.09,0.00023561,2]
[311892328,1705489895832,-500.0,0.00023561,2]
[311892329,1705489895840,-500.0,0.00023561,2]
[311892330,1705489895848,-636.58,0.00023561,2]
[311892331,1705489895856,-500.0,0.00023561,2]
[311892332,1705489895864,-888.84,0.00023561,2]
[311892333,1705489895873,-681.16,0.00023561,2]
[311892334,1705489895882,-500.0,0.00023561,2]
[311892335,1705489895890,-986.98,0.00023561,2]
[311892336,1705489895899,-1114.57,0.00023561,2]
[311892337,1705489895907,-500.0,0.00023561,2]
[311892338,1705489895916,-500.0,0.00023561,2]
[311892339,1705489895926,-560.75,0.00023561,2]
[311892340,1705489895935,-1015.76,0.00023561,2]
[311892341,1705489895943,-818.15,0.00023561,2]
[311892342,1705489895951,-924.47,0.00023561,2]
[311892343,1705489895960,-565.32,0.00023561,2]
[311892344,1705489895969,-778.03,0.00023561,2]
[311892345,1705489895978,-938.79,0.00023561,2]
[311892346,1705489895988,-685.24,0.00023561,2]
[311892347,1705489895997,-1529.03,0.00023561,2]
[311892348,1705489896007,-1126.57,0.00023561,2]
[311892349,1705489896016,-842.83,0.00023561,2]
[311892350,1705489896026,-677.6,0.00023561,2]
[311892351,1705489896035,-500.0,0.00023561,2]
[311892352,1705489896046,-1113.11,0.00023561,2]
[311892353,1705489896056,-824.64,0.00023561,2]
[311892354,1705489896066,-1539.23,0.00023561,2]
[311892355,1705489896076,-500.0,0.00023561,2]
[311892356,1705489896085,-500.0,0.00023561,2]
[311892357,1705489896094,-802.8,0.00023561,2]
[311892358,1705489896104,-1060.88,0.00023561,2]
[311892359,1705489896113,-509.96,0.00023561,2]
[311892360,1705489896123,-620.77,0.00023561,2]
[311892361,1705489896132,-500.0,0.00023561,2]
[311892362,1705489896142,-500.0,0.00023561,2]
[311892363,1705489896152,-1111.84,0.00023561,2]
[311892364,1705489896162,-500.0,0.00023561,2]
[311892365,1705489896171,-797.2,0.00023561,2]
[311892366,1705489896180,-554.16,0.00023561,2]
[311892367,1705489896190,-814.02,0.00023561,2]
[311892368,1705489896200,-653.02,0.00023561,2]
[311892369,1705489896210,-500.0,0.00023561,2]
[311892370,1705489896220,-728.98,0.00023561,2]
[311892371,1705489896230,-608.56,0.00023561,2]
[311892372,1705489896240,-500.0,0.00023561,2]
[311892373,1705489896249,-500.0,0.00023561,2]
[311892374,1705489896260,-1117.37,0.00023561,2]
[311892375,1705489896270,-500.0,0.00023561,2]
[311892376,1705489896279,-500.0,0.00023561,2]
[311892377,1705489896290,-786.84,0.00023561,2]
[311892378,1705489896300,-644.84,0.00023561,2]
[311892379,1705489896310,-865.83,0.00023561,2]
[311892380,1705489896320,-500.0,0.00023561,2]
[311892381,1705489896330,-500.0,0.00023561,2]
[311892382,1705489896341,-985.83,0.00023561,2]
[311892383,1705489896351,-645.46,0.00023561,2]
[311892384,1705489896363,-500.0,0.00023561,2]
[311892385,1705489896373,-617.82952177,0.00023561,2]
[311892386,1705489896384,-500.0,0.00023561,2]
[311892387,1705489896393,-654.2,0.00023561,2]
[311892388,1705489896402,-671.37,0.00023561,2]
[311892389,1705489896411,-500.0,0.00023561,2]
[311892390,1705489896422,-500.0,0.00023561,2]
[311892391,1705489896431,-500.0,0.00023561,2]
[311892392,1705489896442,-500.0,0.00023561,2]
[311892393,1705489896452,-500.0,0.00023561,2]
[311892394,1705489896462,-677.29,0.00023561,2]
[311892395,1705489896472,-859.76,0.00023561,2]
[311892396,1705489896482,-679.83,0.00023561,2]
[311892397,1705489896492,-500.0,0.00023561,2]
[311892398,1705489896501,-812.38,0.00023561,2]
[311892399,1705489896511,-529.77,0.00023561,2]
[311892400,1705489896521,-500.0,0.00023561,2]
[311892401,1705489896530,-500.0,0.00023561,2]
[311892402,1705489896541,-905.75,0.00023561,2]
[311892403,1705489896551,-597.1,0.00023561,2]
[311892404,1705489896561,-500.0,0.00023561,2]
[311892405,1705489896570,-500.0,0.00023561,2]
[311892406,1705489896581,-500.0,0.00023561,2]
[311892407,1705489896591,-976.89,0.00023561,2]
[311892408,1705489896601,-921.81,0.00023561,2]
[311892409,1705489896611,-801.58,0.00023561,2]
[311892410,1705489896621,-1318.24,0.00023561,2]
[311892411,1705489896631,-500.0,0.00023561,2]
[311892412,1705489896641,-565.85,0.00023561,2]
[311892413,1705489896650,-500.0,0.00023561,2]
[311892414,1705489896660,-761.53,0.00023561,2]
[311892415,1705489896669,-500.0,0.00023561,2]
[311892416,1705489896679,-500.0,0.00023561,2]
[311892417,1705489896688,-903.46,0.00023561,2]
[311892418,1705489896697,-638.67,0.00023561,2]
[311892419,1705489896707,-500.0,0.00023561,2]
[311892420,1705489896717,-500.0,0.00023561,2]
[311892421,1705489896726,-689.33,0.00023561,2]
[311892422,1705489896736,-500.0,0.00023561,2]
[311892423,1705489896745,-642.35,0.00023561,2]
[311892424,1705489896754,-500.0,0.00023561,2]
[311892425,1705489896764,-970.35,0.00023561,2]
[311892426,1705489896773,-500.0,0.00023561,2]
[311892427,1705489896782,-1001.32,0.00023561,2]
[311892428,1705489896792,-623.34,0.00023561,2]
[311892429,1705489896801,-1127.94,0.00023561,2]
[311892430,1705489896809,-500.0,0.00023561,2]
[311892431,1705489896819,-893.53,0.00023561,2]
[311892432,1705489896829,-703.72,0.00023561,2]
[311892433,1705489896838,-154.21786334,0.00023561,2]
[311892434,1705489896847,-500.0,0.00023561,2]
[311892435,1705489896856,-500.0,0.00023561,2]
[311892436,1705489896866,-877.36,0.00023561,2]
[311892437,1705489896875,-500.0,0.00023561,2]
[311892438,1705489896885,-499.99570094,0.00023561,2]
[311892439,1705489896894,-1113.03,0.00023561,2]
[311892440,1705489896903,-1009.59,0.00023561,2]
[311892441,1705489896912,-671.58,0.00023561,2]
[311892442,1705489896922,-645.55,0.00023561,2]
[311892443,1705489896931,-500.0,0.00023561,2]
[311892444,1705489896940,-519.72,0.00023561,2]
[311892445,1705489896949,-832.3,0.00023561,2]
[311892446,1705489896958,-509.1,0.00023561,2]
[311892447,1705489896968,-500.0,0.00023561,2]
[311892448,1705489896977,-556.75,0.00023561,2]
[311892449,1705489896986,-500.0,0.00023561,2]
[311892450,1705489896995,-919.94,0.00023561,2]
[311892451,1705489897005,-574.45,0.00023561,2]
[311892452,1705489897015,-730.7,0.00023561,2]
[311892453,1705489897024,-1564.11,0.00023561,2]
[311892454,1705489897034,-665.72,0.00023561,2]
[311892455,1705489897044,-753.37,0.00023561,2]
[311892456,1705489897054,-1972.35,0.00023561,2]
[311892457,1705489897063,-819.9,0.00023561,2]
[311892458,1705489897073,-1330.15,0.00023561,2]
[311892459,1705489897082,-500.0,0.00023561,2]
[311892460,1705489897092,-387.03743561,0.00023561,2]
[311892461,1705489897101,-1961.2,0.00023561,2]
[311892462,1705489897111,-924.92,0.00023561,2]
[311892463,1705489897120,-1342.87,0.00023561,2]
[311892464,1705489897130,-500.0,0.00023561,2]
[311892465,1705489897140,-516.6,0.00023561,2]
[311892466,1705489897149,-966.0,0.00023561,2]
[311892467,1705489897159,-1214.22,0.00023561,2]
[311892468,1705489897169,-872.31,0.00023561,2]
[311892469,1705489897178,-500.0,0.00023561,2]
[311892470,1705489897188,-500.0,0.00023561,2]
[311892471,1705489897197,-748.35,0.00023561,2]
[311892472,1705489897207,-500.0,0.00023561,2]
[311892473,1705489897216,-500.0,0.00023561,2]
[311892474,1705489897226,-937.16,0.00023561,2]
[311892475,1705489897235,-609.81313338,0.00023561,2]
[311892476,1705489897244,-799.25,0.00023561,2]
[311892477,1705489897253,-628.65,0.00023561,2]
[311892478,1705489897262,-500.0,0.00023561,2]
[311892479,1705489897271,-616.54,0.00023561,2]
[311892480,1705489897281,-500.0,0.00023561,2]
[311892481,1705489897291,-717.16,0.00023561,2]
[311892482,1705489897301,-500.0,0.00023561,2]
[311892483,1705489897310,-500.0,0.00023561,2]
[311892484,1705489897319,-500.0,0.00023561,2]
[311892485,1705489897329,-707.9,0.00023561,2]
[311892486,1705489897343,-2202.67,0.00023561,2]
[311892487,1705489897354,-994.43,0.00023561,2]
[311892488,1705489897363,-500.0,0.00023561,2]
[311892489,1705489897374,-1314.57,0.00023561,2]
[311892490,1705489897385,-500.0,0.00023561,2]
[311892491,1705489897396,-700.88,0.00023561,2]
[311892492,1705489897406,-747.11,0.00023561,2]
[311892493,1705489897417,-1247.23,0.00023561,2]
[311892494,1705489897428,-500.0,0.00023561,2]
[311892495,1705489897440,-500.0,0.00023561,2]
[311892496,1705489897450,-500.0,0.00023561,2]
[311892497,1705489897461,-1107.65,0.00023561,2]
[311892498,1705489897471,-940.75,0.00023561,2]
[311892499,1705489897482,-1113.86,0.00023561,2]
[311892500,1705489897735,-500.0,0.00023561,2]
[311892501,1705489897745,-500.0,0.00023561,2]
[311892502,1705489897754,-1068.04,0.00023561,2]
[311892503,1705489897764,-500.0,0.00023561,2]
[311892504,1705489897773,-591.69,0.00023561,2]
[311892505,1705489897783,-514.52,0.00023561,2]
[311892506,1705489897793,-1801.96,0.00023561,2]
[311892507,1705489897802,-500.0,0.00023561,2]
[311892508,1705489897812,-1119.07,0.00023561,2]
[311892509,1705489897821,-2470.72,0.00023561,2]
[311892510,1705489897831,-500.0,0.00023561,2]
[311892511,1705489897841,-500.0,0.00023561,2]
[311892512,1705489897851,-500.0,0.00023561,2]
[311892513,1705489897860,-524.15,0.00023561,2]
[311892514,1705489897870,-904.79,0.00023561,2]
[311892515,1705489897879,-364.1625062,0.00023561,2]
[311892516,1705489897888,-510.6,0.00023561,2]
[311892517,1705489897897,-576.31,0.00023561,2]
[311892518,1705489897907,-1190.34,0.00023561,2]
[311892519,1705489897916,-500.0,0.00023561,2]
[311892520,1705489897925,-764.68,0.00023561,2]
[311892521,1705489897934,-1052.25,0.00023561,2]
[311892522,1705489897944,-636.43,0.00023561,2]
[311892523,1705489897953,-500.0,0.00023561,2]
[311892524,1705489897962,-670.55,0.00023561,2]
[311892525,1705489897972,-1264.48,0.00023561,2]
[311892526,1705489897981,-500.0,0.00023561,2]
[311892527,1705489897991,-814.85,0.00023561,2]
[311892528,1705489898000,-500.0,0.00023561,2]
[311892529,1705489898010,-500.0,0.00023561,2]
[311892530,1705489898019,-544.71,0.00023561,2]
[311892531,1705489898029,-1198.01,0.00023561,2]
[311892532,1705489898039,-1206.43,0.00023561,2]
[311892533,1705489898051,-500.0,0.00023561,2]
[311892534,1705489898061,-500.0,0.00023561,2]
[311892535,1705489898070,-1043.84,0.00023561,2]
[311892536,1705489898080,-1304.35,0.00023561,2]
[311892537,1705489898089,-1069.27,0.00023561,2]
[311892538,1705489898099,-1087.69,0.00023561,2]
[311892539,1705489898108,-962.26,0.00023561,2]
[311892540,1705489898117,-500.0,0.00023561,2]
[311892541,1705489898127,-500.0,0.00023561,2]
[311892542,1705489898136,-516.2,0.00023561,2]
[311892543,1705489898146,-1632.67,0.00023561,2]
[311892544,1705489898155,-500.0,0.00023561,2]
[311892545,1705489898164,-500.0,0.00023561,2]
[311892546,1705489898173,-939.16,0.00023561,2]
[311892547,1705489898182,-918.4,0.00023561,2]
[311892548,1705489898191,-995.2,0.00023561,2]
[311892549,1705489898201,-500.0,0.00023561,2]
[311892550,1705489898210,-1008.57,0.00023561,2]
[311892551,1705489898219,-500.0,0.00023561,2]
[311892552,1705489898228,-500.0,0.00023561,2]
[311892553,1705489898238,-1029.51,0.00023561,2]
[311892554,1705489898247,-500.0,0.00023561,2]
[311892555,1705489898256,-500.0,0.00023561,2]
[311892556,1705489898265,-500.0,0.00023561,2]
[311892557,1705489898274,-1060.73,0.00023561,2]
[311892558,1705489898283,-636.13,0.00023561,2]
[311892559,1705489898295,-169.64833768,0.00023561,2]
[311892560,1705489898305,-429.89664492,0.00023561,2]
[311892561,1705489898314,-500.0,0.00023561,2]
[311892562,1705489898323,-702.02,0.00023561,2]
[311892563,1705489898333,-594.97,0.00023561,2]
[311892564,1705489898344,-701.5,0.00023561,2]
[311892565,1705489898353,-1038.32,0.00023561,2]
[311892566,1705489898365,-572.4,0.00023561,2]
[311892567,1705489898374,-3550.63,0.00023561,2]
[311892568,1705489898384,-982.96,0.00023561,2]
[311892569,1705489898393,-500.0,0.00023561,2]
[311892570,1705489898403,-500.0,0.00023561,2]
[311892571,1705489898412,-579.93,0.00023561,2]
[311892572,1705489898421,-924.4,0.00023561,2]
[311892573,1705489898430,-500.0,0.00023561,2]
[311892574,1705489898440,-578.12,0.00023561,2]
[311892575,1705489898450,-500.0,0.00023561,2]
[311892576,1705489898459,-885.89,0.00023561,2]
[311892577,1705489898468,-694.35,0.00023561,2]
[311892578,1705489898477,-711.56,0.00023561,2]
[311892579,1705489898486,-1404.62,0.00023561,2]
[311892580,1705489898495,-500.0,0.00023561,2]
[311892581,1705489898504,-1235.63,0.00023561,2]
[311892582,1705489898513,-500.0,0.00023561,2]
[311892583,1705489898522,-635.43,0.00023561,2]
[311892584,1705489898532,-510.77438497,0.00023561,2]
[311892585,1705489898543,-1174.22,0.00023561,2]
[311892586,1705489898552,-915.13,0.00023561,2]
[311892587,1705489898561,-701.7,0.00023561,2]
[311892588,1705489898570,-500.0,0.00023561,2]
[311892589,1705489898579,-500.0,0.00023561,2]
[311892590,1705489898589,-242.27244735,0.00023561,2]
[311892591,1705489898598,-2849.83,0.00023561,2]
[311892592,1705489898607,-544.59,0.00023561,2]
[311892593,1705489898616,-1964.36,0.00023561,2]
[311892594,1705489898625,-500.0,0.00023561,2]
[311892595,1705489898634,-500.0,0.00023561,2]
[311892596,1705489898644,-2896.5,0.00023561,2]
[311892597,1705489898653,-1968.52,0.00023561,2]
[311892598,1705489898663,-683.02,0.00023561,2]
[311892599,1705489898672,-1342.01,0.00023561,2]
[311892600,1705489898682,-675.72,0.00023561,2]
[311892601,1705489898691,-500.0,0.00023561,2]
[311892602,1705489898700,-1029.41,0.00023561,2]
[311892603,1705489898709,-1548.58,0.00023561,2]
[311892604,1705489898718,-500.0,0.00023561,2]
[311892605,1705489898728,-500.0,0.00023561,2]
[311892606,1705489898737,-655.65,0.00023561,2]
[311892607,1705489898746,-3528.9,0.00023561,2]
[311892608,1705489898756,-500.0,0.00023561,2]
[311892609,1705489898765,-550.17,0.00023561,2]
[311892610,1705489898774,-530.48,0.00023561,2]
[311892611,1705489898783,-1274.2,0.00023561,2]
[311892612,1705489898794,-500.0,0.00023561,2]
[311892613,1705489898803,-1478.93,0.00023561,2]
[311892614,1705489898812,-826.31,0.00023561,2]
[311892615,1705489898821,-710.03,0.00023561,2]
[311892616,1705489898830,-8305.92,0.00023561,2]
[311892617,1705489898839,-500.0,0.00023561,2]
[311892618,1705489898848,-3468.63,0.00023561,2]
[311892619,1705489898858,-688.83,0.00023561,2]
[311892620,1705489898867,-13840.01,0.00023561,2]
[311892621,1705489898877,-598.69,0.00023561,2]
[311892622,1705489898886,-566.04,0.00023561,2]
[311892623,1705489898895,-330.45,0.00023561,2]
[311892624,1705489898905,-611.72,0.00023561,2]
[311892625,1705489898914,-678.15,0.00023561,2]
[311892626,1705489898923,-500.0,0.00023561,2]
[311892627,1705489898933,-6007.21,0.00023561,2]
[311892628,1705489898942,-11260.59,0.00023561,2]
[311892629,1705489898952,-576.52,0.00023561,2]
[311892630,1705489898962,-537.26,0.00023561,2]
[311892631,1705489898971,-839.94,0.00023561,2]
[311892632,1705489898980,-9043.74,0.00023561,2]
[311892633,1705489898990,-500.0,0.00023561,2]
[311892634,1705489898999,-500.0,0.00023561,2]
[311892635,1705489899009,-2426.8,0.00023561,2]
[311892636,1705489899018,-2267.53,0.00023561,2]
[311892637,1705489899028,-785.85,0.00023561,2]
[311892638,1705489899037,-500.0,0.00023561,2]
[311892639,1705489899048,-1153.46,0.00023561,2]
[311892640,1705489899057,-5019.46,0.00023561,2]
[311892641,1705489899067,-14230.88,0.00023561,2]
[311892642,1705489899077,-585.41,0.00023561,2]
[311892643,1705489899086,-1948.18,0.00023561,2]
[311892644,1705489899096,-500.0,0.00023561,2]
[311892645,1705489899105,-807.32,0.00023561,2]
[311892646,1705489899114,-500.0,0.00023561,2]
[311892647,1705489899124,-1841.76,0.00023561,2]
[311892648,1705489899133,-541.68,0.00023561,2]
[311892649,1705489899142,-648.92,0.00023561,2]
[311892650,1705489899151,-1313.51,0.00023561,2]
[311892651,1705489899161,-7863.6,0.00023561,2]
[311892652,1705489899173,-669.79,0.00023561,2]
[311892653,1705489899182,-1235.43,0.00023561,2]
[311892654,1705489899191,-1875.02,0.00023561,2]
[311892655,1705489899201,-697.24,0.00023561,2]
[311892656,1705489899210,-356.08666837,0.00023561,2]
[311892657,1705489899220,-886.27,0.00023561,2]
[311892658,1705489899229,-861.27,0.00023561,2]
[311892659,1705489899239,-863.63,0.00023561,2]
[311892660,1705489899248,-2235.54,0.00023561,2]
[311892661,1705489899258,-6074.67,0.00023561,2]
[311892662,1705489899267,-524.02,0.00023561,2]
[311892663,1705489899277,-500.0,0.00023561,2]
[311892664,1705489899286,-500.0,0.00023561,2]
[311892665,1705489899297,-4516.86,0.00023561,2]
[311892666,1705489899306,-500.0,0.00023561,2]
[311892667,1705489899316,-3841.76,0.00023561,2]
[311892668,1705489899325,-500.0,0.00023561,2]
[311892669,1705489899334,-974.16,0.00023561,2]
[311892670,1705489899345,-4150.83,0.00023561,2]
[311892671,1705489899354,-4448.34,0.00023561,2]
[311892672,1705489899366,-500.0,0.00023561,2]
[311892673,1705489899375,-500.0,0.00023561,2]
[311892674,1705489899385,-533.91,0.00023561,2]
[311892675,1705489899395,-500.0,0.00023561,2]
[311892676,1705489899405,-500.0,0.00023561,2]
[311892677,1705489899414,-566.02,0.00023561,2]
[311892678,1705489899424,-2935.1,0.00023561,2]
[311892679,1705489899434,-1309.04,0.00023561,2]
[311892680,1705489899444,-500.0,0.00023561,2]
[311892681,1705489899454,-1965.44,0.00023561,2]
[311892682,1705489899464,-992.22,0.00023561,2]
[311892683,1705489899474,-984.15,0.00023561,2]
[311892684,1705489899483,-500.0,0.00023561,2]
[311892685,1705489899493,-1696.71,0.00023561,2]
[311892686,1705489899502,-500.0,0.00023561,2]